Cogmind - Beta 16 @@@ ROGUE MODE // 2026.01.12 @ 14:27:04 // Winter2019/RPGLIKE Player: Gallgagger Result: Self-destructed Performance ------------- Evolutions (1) 500 Regions Visited (2) 400 Robots Destroyed (42) 210 Value Destroyed (1052) 1052 Prototype IDs (2) 40 Alien Tech Used (0) 0 Bonus (66) 66 TOTAL SCORE: 2268 Bonus ------- High Alert Combat Kills 66 Cogmind --------- Core Integrity 600/600 Matter 300/300 Energy 125/125 System Corruption 0% Temperature Cool (0) Movement Flying (34) Location -9/Materials Parts ------- > --- POWER (1) -------- Light Ion Engine > --- PROPULSION (3) --- Flight Unit Flight Unit Flight Unit > --- UTILITY (3) ------ Improved Terrain Scanner Seismic Detector > --- WEAPON (3) ------- Assault Rifle Light Assault Rifle Datajack > --- INVENTORY (3) ---- Protomatter-40 Hacking Suite Peak State ------------ > --- POWER ------------ Light Ion Engine > --- PROPULSION ------- Flight Unit Flight Unit Flight Unit > --- UTILITY ---------- Improved Terrain Scanner Seismic Detector > --- WEAPON ----------- Assault Rifle Light Assault Rifle Datajack > --- INVENTORY -------- Protomatter Hacking Suite [Rating: 11] Favorites ----------- Power Light Ion Engine Engine Light Ion Engine Propulsion Flight Unit Flight Unit Flight Unit Utility Improved Terrain Scanner Device Improved Terrain Scanner Weapon Assault Rifle Ballistic Gun Assault Rifle Special Melee Weapon Datajack Build | -11 -10 -9 ------- Run | Yrd Mat Mat Slots Evolved 6 | 3 3 . Power . | . . . Propulsion 2 | 1 1 . Utility 2 | 1 1 . Weapon 2 | 1 1 . Parts Attached 10 | 6 4 . Power 2 | 2 . . Engine 2 | 2 . . Core . | . . . Reactor . | . . . Propulsion 3 | . 3 . Treads . | . . . Leg . | . . . Wheel . | . . . Hover . | . . . Flight 3 | . 3 . Utility 2 | 2 . . Device 2 | 2 . . Storage . | . . . Processor . | . . . Hackware . | . . . Protection . | . . . Artifact . | . . . Weapon 3 | 2 1 . Energy Gun . | . . . Energy Cannon . | . . . Ballistic Gun 2 | 2 . . Ballistic Cannon . | . . . Launcher . | . . . Special Weapon . | . . . Impact Weapon . | . . . Slashing Weapon . | . . . Piercing Weapon . | . . . Special Melee Weapon 1 | . 1 . Unidentified Prototypes . | . . . Parts Lost . | . . . Power . | . . . Propulsion . | . . . Utility . | . . . Weapon . | . . . Highest Loss Streak . | . . . To Critical Strikes . | . . . Average Backups 1 | . 1 . Power . | . . . Propulsion . | . . . Utility . | . . . Weapon . | . . . Tool/Special . | . . . Unused Backups 1 | . . 1 Power . | . . . Propulsion . | . . . Utility 1 | . . 1 Weapon . | . . . Tool/Special . | . . . Average Slot Usage (%) 83 | . 83 . Engine 13 | . 13 . Flight 15 | . 15 . Device 26 | . 26 . Ballistic Gun 26 | . 26 . Special Melee Weapon 1 | . 1 . Peak Build Rating 11 | 7 11 . Average Rating 8 | 2 8 . On Entrance 6 | . 7 11 Avg Prop Armor Cover (%) . | . . . Naked Turns . | . . . Heaviest Build 9 | 8 9 . Greatest Support 22 | 8 22 . Greatest Overweight (x) . | . . . Average Overweight (x) . | . . . Largest Inventory Capacity 3 | 2 3 . Average Capacity 2 | 2 2 . Most Carried 3 | 1 3 . Average Carried 1 | . 1 . Final Capacity 3 | 2 3 3 Final Carried 2 | . 2 2 Class Distribution -------------------- 81% | Mutant 18% | Scavenger-Mutant Dominant Class ---------------- Mutant | -10/Materials Mutant | -9/Materials Resources | -11 -10 -9 ----------- Run | Yrd Mat Mat Matter Collected 818 | 256 562 . Remotely . | . . . Salvage Created 1013 | 56 957 . Parts 91 | 7 84 . Haulers Intercepted 1 | . 1 . Recyclers Shooed . | . . . Parts Field Recycled . | . . . Retrieved Matter . | . . . Parts Self-Destructed . | . . . Prevented . | . . . Parts Restored . | . . . Kills | -11 -10 -9 ------- Run | Yrd Mat Mat Combat Hostiles Destroyed 33 | . 33 . Guns 33 | . 33 . Classes Destroyed 7 | 1 6 . Worker 2 | . 2 . Tunneler 3 | 2 1 . Hauler 1 | . 1 . Operator 1 | . 1 . Watcher 2 | . 2 . Swarmer 9 | . 9 . Grunt 24 | . 24 . Best Kill Streak 7 | 1 7 . Combat Bots Only 6 | . 6 . Max Kills in Single Turn 2 | 1 2 . Gunslinging . | . . . Exploded . | . . . Melee . | . . . Uniques/NPCs Destroyed . | . . . Combat | -11 -10 -9 -------- Run | Yrd Mat Mat Hostile Shots Fired 113 | . 113 . Missed 47 | . 47 . Hits 66 | . 66 . Projectile 66 | . 66 . Damage Taken 705 | . 705 . Core 583 | . 583 . Absorbed by Shields . | . . . Redirected to Core 391 | . 391 . Core Remaining (%) 100 | 100 100 . Volleys Fired 112 | 4 108 . Largest 2 | 2 2 . Hottest 40 | 40 40 . Shots Fired 224 | 8 216 . Gun 224 | 8 216 . Cannon . | . . . Launcher . | . . . Special . | . . . Kinetic 224 | 8 216 . Thermal . | . . . Explosive . | . . . Electromagnetic . | . . . Robot Hit Streak 22 | 2 22 . Robot Miss Streak 5 | 1 5 . Penetration Max . | . . . Secondary Targets 1 | . 1 . Max Gunslinging Chain 1 | . 1 . Shots Hit Robots 159 | 5 154 . Core Hits 73 | 2 71 . Critical Kills 1 | . 1 . Critical Parts Destroyed . | . . . Critical Strikes 1 | . 1 . Destroy 1 | . 1 . Melee Attacks 1 | . 1 . Impact . | . . . Slashing . | . . . Piercing . | . . . Sneak Attacks 1 | . 1 . Combat Hostiles . | . . . Follow-up Attacks . | . . . Damage Inflicted 1691 | 49 1642 . Guns 1691 | 49 1642 . Cannons . | . . . Explosions . | . . . Melee . | . . . Ramming . | . . . Kinetic 1691 | 49 1642 . Thermal . | . . . Explosive . | . . . Electromagnetic . | . . . Impact . | . . . Slashing . | . . . Piercing . | . . . Highest Corruption . | . . . Average Corruption . | . . . Corruption Purged . | . . . Corruption Blocked . | . . . Overload Shots . | . . . Overflow Damage . | . . . Projectiles . | . . . Explosions . | . . . Melee . | . . . Knockbacks . | . . . Impact . | . . . Kinetic . | . . . Secondary . | . . . Self-Inflicted Damage . | . . . Shots . | . . . Rammed . | . . . Targets Rammed . | . . . Kicked . | . . . Crushed . | . . . Highest Temperature . | . . . Average Temperature . | . . . Received Heat Transfer 321 | . 321 . Siege Activations . | . . . Martial Activations . | . . . Shielding Activations . | . . . Robots Disrupted . | . . . Combat Hostiles . | . . . Robots Corrupted . | . . . Combat Hostiles . | . . . Parts Fried . | . . . Impact Corruptions . | . . . Robots Melted . | . . . Combat Hostiles . | . . . Parts Melted . | . . . Heat Transferred . | . . . Parts Sabotaged . | . . . Parts Stolen . | . . . Parts Stripped . | . . . Power Chain Reactions . | . . . Alert | -11 -10 -9 ------- Run | Yrd Mat Mat Maximum Alert Level 2 | . 2 . Low Security (%) 48 | 100 46 . Level 1 13 | . 13 . Level 2 37 | . 39 . Level 3 . | . . . Level 4 . | . . . Level 5 . | . . . High Security . | . . . Max Security . | . . . Peak Influence 688 | 5 688 . Initial 260 | . . 260 Average 304 | 1 320 . Influence Increases 1066 | 10 1056 . Destroy 0b10 Robot/C 660 | . 660 . Destroy 0b10 Robot/NC 45 | 10 35 . Destroy Leader 146 | . 146 . Select Force Hacks 110 | . 110 . Partial Spotted 15 | . 15 . Lose Combat Pursuer 90 | . 90 . Influence Decreases 806 | 10 440 356 Entered New Map 356 | . . 356 Time Decay 450 | 10 440 . Squads Dispatched 10 | . 10 . Investigation 9 | . 9 . Extermination . | . . . Reinforcement 1 | . 1 . Assault . | . . . Garrison . | . . . Intercept . | . . . Searches Triggered . | . . . Construction Impeded . | . . . Haulers Reinforced . | . . . Active Scanning Responses . | . . . Cargo Convoy Interrupts . | . . . Stealth | -11 -10 -9 --------- Run | Yrd Mat Mat Distress Signals 1 | . 1 . Communications Jammed . | . . . Distress Signals . | . . . Times Spotted 59 | . 59 . Peak Tracking Total 4 | . 4 . Tactical Retreats 4 | . 4 . Traps | -11 -10 -9 ------- Run | Yrd Mat Mat Traps Triggered 4 | . 4 . Indirectly . | . . . Trap Hack Attempts 10 | . 10 . Triggered . | . . . Disarmed . | . . . Reprogrammed 2 | . 2 . Reused . | . . . Traps Extracted . | . . . Installed . | . . . Triggered . | . . . Machines | -11 -10 -9 ---------- Run | Yrd Mat Mat Machines Disabled . | . . . Max in Single Turn . | . . . Machines Repaired . | . . . Machines Dismantled . | . . . Machines Sabotaged 1 | . 1 . Overloaded Fab Kills . | . . . Hacking | -11 -10 -9 --------- Run | Yrd Mat Mat Machines Accessed 10 | . 10 . Terminals 7 | . 7 . Fabricators . | . . . Repair Stations 1 | . 1 . Recycling Units 2 | . 2 . Scanalyzers . | . . . Garrison Access . | . . . Total Hacks 24 | . 24 . Successful 13 | . 13 . Failed 10 | . 10 . Catastrophic 1 | . 1 . Database Lockouts 1 | . 1 . Manual 23 | . 23 . Terminals 21 | . 21 . Fabricators . | . . . Repair Stations 1 | . 1 . Recycling Units 2 | . 2 . Scanalyzers . | . . . Garrison Access . | . . . Terminal Hacks 4 | . 4 . Robot Analysis 2 | . 2 . Prototype ID Bank 1 | . 1 . Alert Level 1 | . 1 . Fabricator Hacks . | . . . Repair Station Hacks . | . . . Recycling Unit Hacks . | . . . Scanalyzer . | . . . Garrison Access Hacks . | . . . Unauthorized Hacks 9 | . 9 . Terminals 6 | . 6 . Botnet 1 | . 1 . Sabotage 3 | . 3 . Search 2 | . 2 . Fabricators . | . . . Repair Stations 1 | . 1 . Patch 1 | . 1 . Recycling Units 2 | . 2 . Tunnel 2 | . 2 . Scanalyzers . | . . . Garrison Access . | . . . Data Cores Recovered . | . . . Used . | . . . Hacking Detections 4 | . 4 . Full Trace Events 2 | . 2 . Feedback Events . | . . . Feedback Blocked . | . . . Robot Schematics Acquired . | . . . Robots Built . | . . . Authchips . | . . . Time . | . . . Total Robot Build Rating . | . . . Part Schematics Acquired . | . . . Parts Built . | . . . Authchips . | . . . Time . | . . . Total Part Build Rating . | . . . Part Studies Acquired . | . . . Parts Repaired . | . . . Time . | . . . Parts Recycled . | . . . Recycled Matter . | . . . Retrieved Matter . | . . . Retrieved Components . | . . . Parts Scanalyzed . | . . . Part Schematics Acquired . | . . . Parts Damaged . | . . . Bothacking | -11 -10 -9 ------------ Run | Yrd Mat Mat Used RIF Installer . | . . . Robots Hacked 1 | . 1 . Non-combat 1 | . 1 . Combat . | . . . Robot Hacks Applied 1 | . 1 . parse_system 1 | . 1 . Relay Couplers Released . | . . . Fabnet Peak Effective % . | . . . Robots Rewired . | . . . Allies Hacked . | . . . Hacks Repelled . | . . . Allies | -11 -10 -9 -------- Run | Yrd Mat Mat Total Allies . | . . . Largest Group . | . . . Highest-Rated Group . | . . . Highest-Rated Ally . | . . . Total Orders . | . . . Ally Attacks . | . . . Total Damage . | . . . Kills . | . . . Allies Corrupted . | . . . Allies Melted . | . . . Intel | -11 -10 -9 ------- Run | Yrd Mat Mat Active Infowar (turns) 1189 | 3 1186 . Terrain 1187 | 1 1186 . Seismic 1186 | 3 1183 . Robot Analysis Total 2 | . 2 . Derelict Logs Recovered . | . . . Drone Launches . | . . . Drone Recoveries . | . . . Exploration | -11 -10 -9 ------------- Run | Yrd Mat Mat Turns Passed 1247 | 61 1186 . Spaces Moved 1080 | 54 1026 . Core 107 | 54 53 . Treads . | . . . Legs . | . . . Wheels . | . . . Hover . | . . . Flight 973 | . 973 . Fastest Speed 34 | 50 34 . Average Speed 40 | 50 39 . Slowest Speed 50 | 50 50 . Overloaded Moves . | . . . Propulsion Burnouts . | . . . Robots Hopped 20 | . 20 . Potential Cave-ins . | . . . Cave-ins Triggered . | . . . Exploration Rate (%) 50 | 2 99 . Regions Visited 2 Branch Regions . Pre-discovered Areas 2 | . 2 . Known Exits Taken . | . . . Unknown Exits Taken 2 | 1 1 . Scrap Searched . | . . . Spaces Dug . | . . . Terrain Destroyed . | . . . Melee . | . . . Projectile . | . . . AOE . | . . . Terrain Rammed . | . . . Walls Destroyed . | . . . Machines Disabled . | . . . Actions | -11 -10 -9 --------- Run | Yrd Mat Mat Total 1659 | 77 1582 . Wait 415 | 13 402 . Move 1038 | 53 985 . Hop 20 | . 20 . Pick Up 5 | 1 4 . Fast Attach 12 | 4 8 . Attach 2 | 1 1 . Detach . | . . . Swap 3 | 1 2 . Drop 1 | . 1 . Fire 112 | 4 108 . Melee 1 | . 1 . Ram . | . . . Kick . | . . . Crush . | . . . Escape Stasis . | . . . Rewire . | . . . Trap 10 | . 10 . Miscellaneous 40 | . 40 . Route ------- -11/Scrapyard -10/Materials (discovered 5 exits: [*Mat x3] / [*Min] / [*Sub]) -9/Materials History --------- Turn | Location | Event 1 | -11/Scrapyard | Upgraded with Propulsion slot (x1) 1 | -11/Scrapyard | Upgraded with Utility slot (x1) 1 | -11/Scrapyard | Upgraded with Weapon slot (x1) 6 | -11/Scrapyard | Discovered new exit (range 15) 62 | -11/Scrapyard | Entered Materials 174 | -10/Materials | Discovered new exit (range 6) 322 | -10/Materials | Build established: Mutant 366 | -10/Materials | Discovered new exit (range 8) 455 | -10/Materials | Discovered new exit (range 15) 523 | -10/Materials | Reached level 2 765 | -10/Materials | Reached level 3 829 | -10/Materials | Central database locked down 936 | -10/Materials | Discovered new exit (range 7) 938 | -10/Materials | Discovered new exit (range 9) 1014 | -10/Materials | Reached level 4 1057 | -10/Materials | Upgraded with Propulsion slot (x1) 1057 | -10/Materials | Upgraded with Utility slot (x1) 1057 | -10/Materials | Upgraded with Weapon slot (x1) 1248 | -10/Materials | Entered another Materials area 1248 | -9/Materials | Self-destructed Last Messages --------------- 01024_ Acquired 27 matter. 01028_ Used Protomatter to restore part integrity (+25) 01034_ Attempting to reprogram Blade Trap. 01042_ Blade Trap reprogrammed. 01043_ Attempting to reprogram Blade Trap. 01043_ Blade Trap reprogrammed. 01046_ Acquired 29 matter. 01057_ Upgraded: Propulsion Slot (+1) 01057_ Upgraded: Utility Slot (+1) 01057_ Upgraded: Weapon Slot (+1) 01057_ Upgraded: Mass Support (+5) 01061_ Acquired Flight Unit. 01097_ K-01 Serf cleans the Machine. 01217_ Acquired 30 matter. 01219_ Sneak attack on M-13 Machinist. 01219_ Jacked M-13 Machinist... >>parse_system Reading system data... LOCATION=UNKNOWN GOAL=ESCAPE Map ----- +----------------------------------------------------+ | ????????????????????????????????? | | ????????????????????????????????? | | ????????????????????????????????? | | ????????????????????????????????? | | ????????????????????????????????? | | ????????????????????????????????? | | ????????????????????????????????? | | ????????????????????????????????? | | ????????????????????????????????? | | ????????????????????????????????? | | ????????????????????????????????? | | ????????????????????????????????? | | ????????????????????????????????? | | ????????????????????????????????? | | ????????????????????????????????? | | ????????????????????????????????? | | ????????????????????????????????? | | ????????????????????????????????? | | ????????????????????????????????? | | ????????????????????????????????? | | ????????????????????????????????? | | ????????????????????????????????? | | ????????????????????????????????? | | ??????####+####?????????????????? | | ??????# #?????????????????? | | ??????# @ #?????????????????? | | ??????# #?????????????????? | | ??????##### #?????????????????? | | ???????????? #?????????????????? | | ????????????? #?????????????????? | | ????????????????????????????????? | | ????????????????????????????????? | | ????????????????????????????????? | | ????????????????????????????????? | | ????????????????????????????????? | | ????????????????????????????????? | | ????????????????????????????????? | | ????????????????????????????????? | | ????????????????????????????????? | | ????????????????????????????????? | | ????????????????????????????????? | | ????????????????????????????????? | | ????????????????????????????????? | | ????????????????????????????????? | | ????????????????????????????????? | | ????????????????????????????????? | | ????????????????????????????????? | | ????????????????????????????????? | | ????????????????????????????????? | | ????????????????????????????????? | +----------------------------------------------------+ Best States ------------- Heat Dissipation 43 Energy Generation 10 Energy Capacity 125 Matter Stores 300 Matter Capacity 300 Sight Range 16 Terrain Scan Range 16 Terrain Scan Density 10 Evasion (%) 63 Item Schematics ----------------- None Robot Schematics ------------------ None Fabricated ------------ Nothing Repaired ---------- Nothing Studied --------- None Alien Tech Used ----------------- None Achievements -------------- None Challenges ------------ None RPGLIKE | -11 -10 -9 --------- Run | Yrd Mat Mat Levels Raised 3 | . 3 . XP Earned 7583 | 3000 4583 . XP Spent 6710 | 2960 3750 . Upgrades 15 | 10 5 . Propulsion Slot 2 | 1 1 . Utility Slot 2 | 1 1 . Weapon Slot 2 | 1 1 . Heat Dissipation 3 | 3 . . Mass Support 2 | 1 1 . Inventory Capacity 3 | 2 1 . Ranged Accuracy 1 | 1 . . Protomatter Created 499 | . 499 . Integrity Restored 771 | . 771 . Core 583 | . 583 . Parts 188 | . 188 . Protomatter Decayed 65 | . 65 . Game ------ Seed MissileJammingScanner Manual? 1 Play Time 00:12:07 Cumulative 543.5 hours Start 2026.01.12 @ 14:09:21 End 2026.01.12 @ 14:27:04 Sessions 1 Manual Loads 0 Difficulty Rogue Special Mode Winter2019/RPGLIKE Game No. 202 Rogue 48 Adventurer 154 Explorer 0 Win Type - Total 20 Types 4/4/3/3/2/1/0/1/1/1 Lore% 95 Gallery% 88 Achievement% 61 Wizard Run 0 Options --------- Layout 0 ASCII 0 Keyboard 0 Movement Numpad Keybinds 0 Fullscreen 2 Font 18/SmallcapsGlow Map View 76x50 Zoom Use 0% Tactical HUD 1 Map Filters NONE Filters NONE Steam 1 RUN: 34c07d1b-69e7-46d4-a1d1-21d18b01bff3